fUSD/lending_fUSD_20250112
["ID","MTS","AMOUNT","RATE_DAILY","PERIOD"]
[348599389,1736664645362,-500.0,9.799e-05,2]
[348599390,1736664645371,-500.0,9.799e-05,2]
[348599391,1736664645380,-500.0,9.799e-05,2]
[348599392,1736664645389,-1847.16,9.799e-05,2]
[348599393,1736664645399,-1022.78,9.799e-05,2]
[348599394,1736664645408,-500.0,9.799e-05,2]
[348599395,1736664645418,-2692.34,9.799e-05,2]
[348599396,1736664645430,-1315.25,9.799e-05,2]
[348599397,1736664645441,-7347.54,9.799e-05,2]
[348599398,1736664645452,-2014.49,9.799e-05,2]
[348599399,1736664645463,-500.0,9.799e-05,2]
[348599400,1736664645472,-1247.03,9.799e-05,2]
[348599401,1736664645481,-500.0,9.799e-05,2]
[348599402,1736664645491,-1000.0,9.799e-05,2]
[348599403,1736664645500,-1027.93,9.799e-05,2]
[348599404,1736664645511,-1392.43,9.799e-05,2]
[348599405,1736664645520,-2287.88,9.799e-05,2]
[348599406,1736664645530,-888.82,9.799e-05,2]
[348599407,1736664645539,-500.0,9.799e-05,2]
[348599408,1736664645547,-1223.56,9.799e-05,2]
[348599409,1736664645556,-2751.8,9.799e-05,2]
[348599410,1736664645565,-5700.0,9.8e-05,3]
[348599411,1736664645574,-187.0,9.804e-05,2]
[348599412,1736664645583,-156.0,9.804e-05,2]
[348599413,1736664645593,-11149.56987886,9.811e-05,2]
[348599414,1736664645602,-150.0,9.814e-05,2]
[348599415,1736664645611,-150.0,9.82e-05,2]
[348599416,1736664645620,-1517.85,9.821e-05,2]
[348599417,1736664645630,-1831.45,9.821e-05,2]
[348599418,1736664645639,-1262.15,9.821e-05,2]
[348599419,1736664645648,-2965.78,9.821e-05,2]
[348599420,1736664645657,-1672.59,9.821e-05,2]
[348599421,1736664645666,-3495.27,9.821e-05,2]
[348599422,1736664645675,-305.74,9.836e-05,2]
[348599423,1736664645685,-231.99496366,9.85e-05,2]
[348599424,1736664645694,-150.0,9.856e-05,2]
[348599425,1736664645703,-150.0,9.862e-05,2]
[348599426,1736664645713,-915.8,9.871e-05,2]
[348599427,1736664645723,-500.0,9.871e-05,2]
[348599428,1736664645733,-1218.5,9.871e-05,2]
[348599429,1736664645742,-3049.30081627,9.872e-05,2]
[348599430,1736664645751,-378.01106759,9.878e-05,2]
[348599431,1736664645760,-150.0,9.879e-05,2]
[348599432,1736664645769,-150.0,9.891e-05,2]
[348599433,1736664645778,-500.0,9.898e-05,2]
[348599434,1736664645787,-501.67215453,9.898e-05,2]
[348599435,1736664645797,-500.0,9.898e-05,2]
[348599436,1736664645806,-503.64783174,9.898e-05,2]
[348599437,1736664645816,-500.0,9.898e-05,2]
[348599438,1736664645824,-500.0,9.898e-05,2]
[348599439,1736664645833,-500.0,9.898e-05,2]
[348599440,1736664645843,-85057.64800706,9.898e-05,2]
[348599441,1736664645852,-500.0,9.899e-05,2]
[348599442,1736664645862,-151.33107376,9.899e-05,2]
[348599443,1736664645871,-7600.0,9.9e-05,3]
[348599444,1736664645880,-3279.66720873,9.9e-05,2]
[348599445,1736664645890,-3279.6672087,9.9e-05,2]
[348599446,1736664645899,-3279.6672087,9.9e-05,2]
[348599447,1736664645908,-3279.6672087,9.9e-05,2]
[348599448,1736664645917,-3279.6672087,9.9e-05,2]
[348599449,1736664645927,-3279.6672087,9.9e-05,2]
[348599450,1736664645937,-3279.6672087,9.9e-05,2]
[348599451,1736664645946,-3279.6672087,9.9e-05,2]
[348599452,1736664645955,-3279.6672087,9.9e-05,2]
[348599453,1736664645964,-3279.6672087,9.9e-05,2]
[348599454,1736664645974,-300.0,9.902e-05,2]
[348599455,1736664645984,-3279.6672087,9.903e-05,2]
[348599456,1736664645993,-376.74776218,9.91e-05,2]
[348599457,1736664646002,-3279.6672087,9.914e-05,2]
[348599458,1736664646011,-156.39484219,9.917e-05,2]
[348599459,1736664646020,-150.0,9.918e-05,2]
[348599460,1736664646029,-3279.6672087,9.925e-05,2]
[348599461,1736664646038,-3279.6672087,9.936e-05,2]
[348599462,1736664646047,-3279.6672087,9.946e-05,2]
[348599463,1736664646056,-662.54,9.954e-05,2]
[348599464,1736664646065,-3279.6672087,9.957e-05,2]
[348599465,1736664646074,-150.0,9.96e-05,2]
[348599466,1736664646083,-3279.6672087,9.968e-05,2]
[348599467,1736664646092,-2595.68842146,9.969e-05,2]
[348599468,1736664646101,-5378.0,9.973e-05,2]
[348599469,1736664646110,-500.74358298,9.973e-05,2]
[348599470,1736664646120,-3279.6672087,9.979e-05,2]
[348599471,1736664646128,-3279.6672087,9.989e-05,2]
[348599472,1736664646137,-2352.576,9.99e-05,2]
[348599473,1736664646146,-170.349,9.99e-05,2]
[348599474,1736664646155,-2275.9098228,9.992e-05,2]
[348599475,1736664646164,-347.1121087,9.992e-05,2]
[348599476,1736664646173,-2124.1825013,9.993e-05,2]
[348599477,1736664646183,-323.9713014,9.993e-05,2]
[348599478,1736664646192,-1002.49815365,9.999e-05,3]
[348599479,1736664646201,-1002.49815365,9.999e-05,3]
[348599480,1736664646211,-1002.49815365,9.999e-05,3]
[348599481,1736664646220,-1002.49815365,9.999e-05,3]
[348599482,1736664646234,-151.0,9.999e-05,2]
[348599483,1736664646243,-151.0,9.999e-05,2]
[348599484,1736664646252,-151.0,9.999e-05,2]
[348599485,1736664646262,-151.0,9.999e-05,2]
[348599486,1736664646274,-151.0,9.999e-05,2]
[348599487,1736664646283,-151.0,9.999e-05,2]
[348599488,1736664646292,-151.0,9.999e-05,2]
[348599489,1736664646301,-151.0,9.999e-05,2]
[348599490,1736664646310,-151.0,9.999e-05,2]
[348599491,1736664646319,-151.0,9.999e-05,2]
[348599492,1736664646328,-151.0,9.999e-05,2]
[348599493,1736664646337,-151.0,9.999e-05,2]
[348599494,1736664646346,-151.0,9.999e-05,2]
[348599495,1736664646357,-151.0,9.999e-05,2]
[348599496,1736664646366,-151.0,9.999e-05,2]
[348599497,1736664646376,-151.0,9.999e-05,2]
[348599498,1736664646385,-151.0,9.999e-05,2]
[348599499,1736664646394,-151.0,9.999e-05,2]
[348599500,1736664646403,-151.0,9.999e-05,2]
[348599501,1736664646412,-151.0,9.999e-05,2]
[348599502,1736664646422,-151.0,9.999e-05,2]
[348599503,1736664646431,-151.0,9.999e-05,2]
[348599504,1736664646440,-151.0,9.999e-05,2]
[348599505,1736664646449,-151.0,9.999e-05,2]
[348599506,1736664646458,-151.0,9.999e-05,2]
[348599507,1736664646467,-151.0,9.999e-05,2]
[348599508,1736664646479,-151.0,9.999e-05,2]
[348599509,1736664646488,-151.0,9.999e-05,2]
[348599510,1736664646497,-151.0,9.999e-05,2]
[348599511,1736664646506,-151.0,9.999e-05,2]
[348599512,1736664646515,-151.0,9.999e-05,2]
[348599513,1736664646525,-151.0,9.999e-05,2]
[348599514,1736664646534,-151.0,9.999e-05,2]
[348599515,1736664646543,-151.0,9.999e-05,2]
[348599516,1736664646552,-151.0,9.999e-05,2]
[348599517,1736664646561,-151.0,9.999e-05,2]
[348599518,1736664646571,-151.0,9.999e-05,2]
[348599519,1736664646580,-151.0,9.999e-05,2]
[348599520,1736664646590,-151.0,9.999e-05,2]
[348599521,1736664646599,-151.0,9.999e-05,2]
[348599522,1736664646611,-151.0,9.999e-05,2]
[348599523,1736664646620,-151.0,9.999e-05,2]
[348599524,1736664646631,-151.0,9.999e-05,2]
[348599525,1736664646641,-151.0,9.999e-05,2]
[348599526,1736664646650,-151.0,9.999e-05,2]
[348599527,1736664646660,-151.0,9.999e-05,2]
[348599528,1736664646670,-151.0,9.999e-05,2]
[348599529,1736664646679,-151.0,9.999e-05,2]
[348599530,1736664646690,-151.0,9.999e-05,2]
[348599531,1736664646699,-151.0,9.999e-05,2]
[348599532,1736664646709,-151.0,9.999e-05,2]
[348599533,1736664646719,-151.0,9.999e-05,2]
[348599534,1736664646864,-151.0,9.999e-05,2]
[348599535,1736664646874,-151.0,9.999e-05,2]
[348599536,1736664646884,-151.0,9.999e-05,2]
[348599537,1736664646893,-151.0,9.999e-05,2]
[348599538,1736664646903,-151.0,9.999e-05,2]
[348599539,1736664646912,-151.0,9.999e-05,2]
[348599540,1736664646923,-151.0,9.999e-05,2]
[348599541,1736664646932,-151.0,9.999e-05,2]
[348599542,1736664646941,-151.0,9.999e-05,2]
[348599543,1736664646951,-151.0,9.999e-05,2]
[348599544,1736664646961,-151.0,9.999e-05,2]
[348599545,1736664646970,-151.0,9.999e-05,2]
[348599546,1736664646980,-151.0,9.999e-05,2]
[348599547,1736664646989,-151.0,9.999e-05,2]
[348599548,1736664646998,-151.0,9.999e-05,2]
[348599549,1736664647007,-151.0,9.999e-05,2]
[348599550,1736664647017,-151.0,9.999e-05,2]
[348599551,1736664647025,-151.0,9.999e-05,2]
[348599552,1736664647035,-151.0,9.999e-05,2]
[348599553,1736664647044,-151.0,9.999e-05,2]
[348599554,1736664647053,-151.0,9.999e-05,2]
[348599555,1736664647063,-151.0,9.999e-05,2]
[348599556,1736664647071,-151.0,9.999e-05,2]
[348599557,1736664647081,-151.0,9.999e-05,2]
[348599558,1736664647090,-151.0,9.999e-05,2]
[348599559,1736664647099,-222.0,9.999e-05,2]
[348599560,1736664647108,-500.0,9.999e-05,2]
[348599561,1736664647118,-500.0,9.999e-05,2]
[348599562,1736664647128,-231.31198979,9.999e-05,2]
[348599563,1736664647138,-500.0,9.999e-05,2]
[348599564,1736664647149,-500.0,9.999e-05,2]
[348599565,1736664647158,-179.39108854,9.999e-05,2]
[348599566,1736664647168,-501.19180777,9.999e-05,2]
[348599567,1736664647177,-500.0,9.999e-05,2]
[348599568,1736664647187,-500.0,9.999e-05,2]
[348599569,1736664647197,-500.0,9.999e-05,2]
[348599570,1736664647207,-500.0,9.999e-05,2]
[348599571,1736664647216,-502.58153223,9.999e-05,2]
[348599572,1736664647226,-275.37591735,9.999e-05,2]
[348599573,1736664647235,-402.21688497,9.999e-05,2]
[348599574,1736664647244,-500.0,9.999e-05,2]
[348599575,1736664647254,-500.0,9.999e-05,2]
[348599576,1736664647263,-500.0,9.999e-05,2]
[348599577,1736664647276,-208.27996086,9.999e-05,2]
[348599578,1736664647287,-151.86351427,9.999e-05,2]
[348599579,1736664647297,-674.0,0.0001,2]
[348599580,1736664647307,-989574.12983939,0.0001,2]
[348599581,1736664647318,-1065.30100964,0.0001,2]
[348599582,1736664647328,-150.0,0.0001,2]
[348599583,1736664647337,-150.0,0.0001,2]
[348599584,1736664647347,-150.0,0.0001,2]
[348599585,1736664647358,-3673.79630789,0.0001,2]
[348599586,1736664647367,-2374.54071931,0.0001,2]
[348599587,1736664647377,-989.90157266,0.0001,2]
[348599588,1736664647387,-992262.42715289,0.0001,2]
[348599589,1736664647396,-503985.64293199,0.0001,2]
[348599590,1736664647406,-150.0,0.0001,2]
[348599591,1736664647415,-1510.82889421,0.0001,2]
[348599592,1736664647425,-105416.12899276,0.0001,2]
[348599593,1736664647434,-448.8177559,0.0001,2]
[348599594,1736664647444,-1001.0818,0.0001,2]
[348599595,1736664647453,-151.0,0.0001,2]
[348599596,1736664647461,-151.0,0.0001,2]
[348599597,1736664647470,-151.0,0.0001,2]
[348599598,1736664647480,-151.0,0.0001,2]
[348599599,1736664647489,-190177.80377898,0.0001,2]
[348599600,1736664647498,-151.0,0.0001,2]
[348599601,1736664647507,-151.0,0.0001,2]
[348599602,1736664647516,-151.0,0.0001,2]
[348599603,1736664647525,-656360.45936377,0.0001,2]
[348599604,1736664647918,-9410.25634001,0.0001,2]
[348599605,1736664647938,-535.42938821,9.798e-05,2]
[348599606,1736664647946,-111046.81447036,0.0001,2]
[348599607,1736664647955,-661.14,0.0001,2]
[348599608,1736664647964,-316.02,0.0001,2]
[348599609,1736664647974,-1851.31966912,0.0001,2]
[348599610,1736664647983,-252.10053548,0.0001,2]
[348599611,1736664647992,-256.57,0.0001,2]
[348599612,1736664648001,-672.43,0.0001,2]
[348599613,1736664648011,-151.86351435,0.0001,2]
[348599614,1736664648020,-1000.0,0.0001,2]
[348599615,1736664648029,-1000.0,0.0001,2]
[348599616,1736664648039,-1000.0,0.0001,2]
[348599617,1736664648048,-1000.0,0.0001,2]
[348599618,1736664648057,-1000.0,0.0001,2]
[348599619,1736664648067,-1000.0,0.0001,2]
[348599620,1736664648077,-1000.0,0.0001,2]
[348599621,1736664648086,-1000.0,0.0001,2]
[348599622,1736664648095,-1000.0,0.0001,2]
[348599623,1736664648104,-1007.76035434,0.0001,2]
[348599624,1736664648113,-2000.0,0.0001,2]
[348599625,1736664648122,-200.0,0.0001,2]
[348599626,1736664648131,-201.83679213,0.0001,2]
[348599627,1736664648140,-500.0,0.0001,2]
[348599628,1736664648149,-150.0,0.0001,2]
[348599629,1736664648159,-365.0,0.0001,2]
[348599630,1736664648168,-365.6665,0.0001,2]
[348599631,1736664648177,-9500.0,0.0001,3]
[348599632,1736664648187,-10045.52,0.0001,2]
[348599633,1736664648196,-1000.0,0.0001,2]
[348599634,1736664648206,-1000.6704,0.0001,2]
[348599635,1736664648215,-3000.0,0.0001,2]
[348599636,1736664648225,-3000.0,0.0001,2]
[348599637,1736664648234,-8062.58384991,0.0001,2]
[348599638,1736664648243,-693.0,0.0001,2]
[348599639,1736664648252,-975.4,0.0001,2]
[348599640,1736664648261,-182.50148703,0.0001,2]
[348599641,1736664648271,-751.57151002,0.0001,2]
[348599642,1736664648282,-2000.0,0.0001,2]
[348599643,1736664648291,-200.0,0.0001,2]
[348599644,1736664648300,-150.0,0.0001,2]
[348599645,1736664648309,-1000.0,0.0001,2]
[348599646,1736664648318,-1000.0,0.0001,2]
[348599647,1736664648327,-1000.0,0.0001,2]
[348599648,1736664648337,-753.808117,0.0001,2]
[348599649,1736664648346,-753.808117,0.0001,2]
[348599650,1736664648357,-1000.0,0.0001,2]
[348599651,1736664648368,-1000.0,0.0001,2]
[348599652,1736664648377,-1000.0,0.0001,2]
[348599653,1736664648386,-1000.0,0.0001,2]
[348599654,1736664648395,-1000.0,0.0001,2]
[348599655,1736664648405,-1000.0,0.0001,2]
[348599656,1736664648414,-1000.0,0.0001,2]
[348599657,1736664648424,-500.0,0.0001,2]
[348599658,1736664648433,-150.1618228,0.0001,2]
[348599659,1736664648443,-150.13172316,0.0001,2]
[348599660,1736664648452,-150.17527883,0.0001,2]
[348599661,1736664648462,-150.0,0.0001,2]
[348599662,1736664648679,-3279.6672087,0.0001,2]
[348599663,1736664648689,-150.0,0.0001,2]
[348599664,1736664648699,-2595.68842168,0.0001,2]
[348599665,1736664648709,-2595.68842146,0.0001,2]
[348599666,1736664648719,-2595.68842146,0.0001,2]
[348599667,1736664648729,-2595.68842146,0.0001,2]
[348599668,1736664648739,-500.0,0.00010027,2]
[348599669,1736664648749,-150.0,0.00010027,2]
[348599670,1736664648758,-500.0,0.00010027,2]
[348599671,1736664648768,-150.0,0.00010027,2]
[348599672,1736664648777,-150.0,0.00010027,2]
[348599673,1736664648786,-651.74955319,0.00010055,2]
[348599674,1736664648796,-150.0,0.00010055,2]
[348599675,1736664648806,-500.0,0.00010055,2]
[348599676,1736664648816,-150.0,0.00010055,2]
[348599677,1736664648825,-150.0,0.00010055,2]
[348599678,1736664648835,-1492.92,0.0001007,2]
[348599679,1736664648845,-500.0,0.0001007,2]
[348599680,1736664648854,-507.44742796,0.0001007,2]
[348599681,1736664648864,-500.0,0.0001007,2]
[348599682,1736664648874,-500.0,0.0001007,2]
[348599683,1736664648883,-1187.17,0.0001007,2]
[348599684,1736664648892,-501.14912823,0.0001007,2]
[348599685,1736664648902,-502.70253997,0.0001007,2]
[348599686,1736664648911,-500.0,0.0001007,2]
[348599687,1736664648920,-500.0,0.0001007,2]
[348599688,1736664648930,-500.0,0.0001007,2]
[348599689,1736664648939,-500.0,0.0001007,2]
[348599690,1736664648948,-390.09541743,0.0001007,2]
[348599691,1736664648958,-500.0,0.0001007,2]
[348599692,1736664648967,-500.0,0.0001007,2]
[348599693,1736664648978,-500.0,0.0001007,2]
[348599694,1736664648987,-500.0,0.0001007,2]
[348599695,1736664648996,-573.67951457,0.0001007,2]
[348599696,1736664649005,-993.35,0.0001007,2]
[348599697,1736664649015,-500.0,0.0001007,2]
[348599698,1736664649024,-255.83370233,0.0001007,2]
[348599699,1736664649033,-500.0,0.0001007,2]
[348599700,1736664649043,-500.0,0.0001007,2]
[348599701,1736664649052,-500.0,0.0001007,2]
[348599702,1736664649062,-500.0,0.0001007,2]
[348599703,1736664649071,-500.0,0.0001007,2]
[348599704,1736664649080,-631.43,0.0001007,2]
[348599705,1736664649089,-500.0,0.0001007,2]
[348599706,1736664649099,-2299.02,0.0001007,2]
[348599707,1736664649108,-500.0,0.0001007,2]
[348599708,1736664649117,-500.0,0.0001007,2]
[348599709,1736664649126,-1104.38,0.0001007,2]
[348599710,1736664649135,-500.0,0.0001007,2]
[348599711,1736664649144,-500.0,0.0001007,2]
[348599712,1736664649154,-500.0,0.0001007,2]
[348599713,1736664649163,-1369.53,0.0001007,2]
[348599714,1736664649173,-1498.73,0.0001007,2]
[348599715,1736664649182,-3063.74,0.0001007,2]
[348599716,1736664649192,-2233.87,0.0001007,2]
[348599717,1736664649201,-500.0,0.0001007,2]
[348599718,1736664649211,-992.88,0.0001007,2]
[348599719,1736664649220,-500.0,0.0001007,2]
[348599720,1736664649231,-500.0,0.0001007,2]
[348599721,1736664649240,-500.0,0.0001007,2]
[348599722,1736664649249,-500.0,0.0001007,2]
[348599723,1736664649259,-1018.01,0.0001007,2]
[348599724,1736664649269,-511.46,0.0001007,2]
[348599725,1736664649282,-500.0,0.0001007,2]
[348599726,1736664649291,-1456.79,0.0001007,2]
[348599727,1736664649300,-423.47789765,0.0001007,2]
[348599728,1736664649309,-2026.96,0.0001007,2]
[348599729,1736664649319,-500.0,0.0001007,2]
[348599730,1736664649329,-2633.29,0.0001007,2]
[348599731,1736664649338,-500.0,0.0001007,2]
[348599732,1736664649349,-500.0,0.0001007,2]
[348599733,1736664649359,-500.0,0.0001007,2]
[348599734,1736664649368,-500.0,0.0001007,2]
[348599735,1736664649377,-500.0,0.0001007,2]
[348599736,1736664649388,-500.0,0.0001007,2]
[348599737,1736664649397,-500.0,0.0001007,2]
[348599738,1736664649407,-237.9369295,0.0001007,2]
[348599739,1736664649416,-500.0,0.0001007,2]
[348599740,1736664649427,-500.0,0.0001007,2]
[348599741,1736664649438,-500.0,0.0001007,2]
[348599742,1736664649447,-500.0,0.0001007,2]
[348599743,1736664649459,-2706.37,0.0001007,2]
[348599744,1736664649468,-500.0,0.0001007,2]
[348599745,1736664649478,-500.0,0.0001007,2]
[348599746,1736664649487,-567.92,0.0001007,2]
[348599747,1736664649496,-2579.55,0.0001007,2]
[348599748,1736664649506,-500.0,0.0001007,2]
[348599749,1736664649515,-1594.75,0.0001007,2]
[348599750,1736664649525,-500.0,0.0001007,2]
[348599751,1736664649535,-500.0,0.0001007,2]
[348599752,1736664649545,-3805.02,0.0001007,2]
[348599753,1736664649554,-277.72737736,0.0001007,2]
[348599754,1736664649563,-500.0,0.0001007,2]
[348599755,1736664649573,-2233.36,0.0001007,2]
[348599756,1736664649582,-2126.05,0.0001007,2]
[348599757,1736664649591,-1039.96,0.0001007,2]
[348599758,1736664649601,-171.26,0.0001007,2]
[348599759,1736664649610,-500.0,0.0001007,2]
[348599760,1736664649620,-500.0,0.0001007,2]
[348599761,1736664649629,-500.0,0.0001007,2]
[348599762,1736664649638,-500.0,0.0001007,2]
[348599763,1736664649647,-1541.53,0.0001007,2]
[348599764,1736664649656,-500.0,0.0001007,2]
[348599765,1736664649672,-2279.39,0.0001007,2]
[348599766,1736664649694,-581.8,0.0001007,2]
[348599767,1736664649711,-2963.62,0.0001007,2]
[348599768,1736664649730,-504.26457366,0.0001007,2]
[348599769,1736664649749,-500.0,0.0001007,2]
[348599770,1736664649764,-575.16006284,0.0001007,2]
[348599771,1736664649779,-500.0,0.0001007,2]
[348599772,1736664649797,-500.0,0.0001007,2]
[348599773,1736664649815,-565.56,0.0001007,2]
[348599774,1736664649831,-500.0,0.0001007,2]
[348599775,1736664649850,-1710.43,0.0001007,2]
[348599776,1736664649866,-913.706464,0.0001007,2]
[348599777,1736664649883,-500.0,0.0001007,2]
[348599778,1736664649899,-543.49541861,0.0001007,2]
[348599779,1736664649912,-500.0,0.0001007,2]
[348599780,1736664649929,-500.0,0.0001007,2]
[348599781,1736664649944,-1287.27,0.0001007,2]
[348599782,1736664649957,-500.0,0.0001007,2]
[348599783,1736664649974,-500.0,0.0001007,2]
[348599784,1736664649987,-500.0,0.0001007,2]
[348599785,1736664650000,-502.80202421,0.0001007,2]
[348599786,1736664650015,-500.0,0.0001007,2]
[348599787,1736664650032,-354.50866912,0.0001007,2]
[348599788,1736664650046,-1149.0,0.0001007,2]
[348599789,1736664650060,-1405.71,0.0001007,2]
[348599790,1736664650075,-500.0,0.0001007,2]
[348599791,1736664650089,-500.0,0.0001007,2]
[348599792,1736664650103,-963.31,0.00010071,2]
[348599793,1736664650116,-557.14,0.00010071,2]
[348599794,1736664650129,-500.0,0.00010071,2]
[348599795,1736664650143,-196.61835499,0.00010071,2]
[348599796,1736664650156,-500.0,0.00010071,2]
[348599797,1736664650170,-500.0,0.00010071,2]
[348599798,1736664650184,-500.0,0.00010071,2]
[348599799,1736664650197,-500.0,0.00010071,2]
[348599800,1736664650211,-500.0,0.00010071,2]
[348599801,1736664650224,-1103.95,0.00010071,2]
[348599802,1736664650238,-867.85,0.00010071,2]
[348599803,1736664650252,-763.15,0.00010071,2]
[348599804,1736664650264,-960.97,0.00010071,2]
[348599805,1736664650283,-644.23,0.00010071,2]
[348599806,1736664650296,-500.0,0.00010071,2]
[348599807,1736664650309,-500.0,0.00010071,2]
[348599808,1736664650324,-503.22024224,0.00010071,2]
[348599809,1736664650337,-500.0,0.00010071,2]
[348599810,1736664650352,-500.0,0.00010071,2]
[348599811,1736664650366,-500.0,0.00010071,2]
[348599812,1736664650379,-500.0,0.00010071,2]
[348599813,1736664650393,-500.0,0.00010071,2]
[348599814,1736664650407,-754.45,0.00010071,2]
[348599815,1736664650420,-500.0,0.00010071,2]
[348599816,1736664650434,-500.0,0.00010071,2]
[348599817,1736664650448,-928.85,0.00010071,2]
[348599818,1736664650462,-848.67715439,0.00010071,2]
[348599819,1736664650482,-139.19284561,0.00010071,2]
[348599820,1736664650495,-500.0,0.00010071,2]
[348599821,1736664650510,-851.53,0.00010071,2]
[348599822,1736664650524,-500.0,0.00010071,2]
[348599823,1736664650537,-500.0,0.00010071,2]
[348599824,1736664650551,-500.0,0.00010071,2]
[348599825,1736664650566,-500.0,0.00010071,2]
[348599826,1736664650580,-500.0,0.00010071,2]
[348599827,1736664650594,-500.0,0.00010071,2]
[348599828,1736664650607,-500.0,0.00010071,2]
[348599829,1736664650622,-500.0,0.00010071,2]
[348599830,1736664650637,-500.0,0.00010071,2]
[348599831,1736664650650,-258.60833354,0.00010071,2]
[348599832,1736664650664,-500.0,0.00010071,2]
[348599833,1736664650677,-500.0,0.00010071,2]
[348599834,1736664650692,-519.07,0.00010071,2]
[348599835,1736664650706,-1014.03,0.00010071,2]
[348599836,1736664650719,-500.0,0.00010071,2]
[348599837,1736664650733,-500.0,0.00010071,2]
[348599838,1736664650747,-674.28,0.00010071,2]
[348599839,1736664650761,-500.0,0.00010071,2]
[348599840,1736664650775,-613.53682204,0.00010071,2]
[348599841,1736664650789,-500.0,0.00010071,2]
[348599842,1736664650802,-757.73,0.00010071,2]
[348599843,1736664650817,-963.18,0.00010071,2]
[348599844,1736664650832,-500.0,0.00010071,2]
[348599845,1736664650844,-500.0,0.00010071,2]
[348599846,1736664650853,-1070.9,0.00010071,2]
[348599847,1736664650863,-536.18,0.00010071,2]
[348599848,1736664650872,-807.745554,0.00010071,2]
[348599849,1736664650882,-500.0,0.00010071,2]
[348599850,1736664650891,-774.11,0.00010071,2]
[348599851,1736664650900,-500.0,0.00010071,2]
[348599852,1736664650910,-500.0,0.00010071,2]
[348599853,1736664650919,-500.0,0.00010071,2]
[348599854,1736664650929,-500.0,0.00010071,2]
[348599855,1736664650938,-500.0,0.00010071,2]
[348599856,1736664650947,-500.0,0.00010071,2]
[348599857,1736664650956,-1118.47,0.00010071,2]
[348599858,1736664650966,-500.0,0.00010071,2]
[348599859,1736664650976,-500.0,0.00010071,2]
[348599860,1736664650987,-500.0,0.00010071,2]
[348599861,1736664650996,-500.0,0.00010071,2]
[348599862,1736664651006,-500.0,0.00010071,2]
[348599863,1736664651016,-500.0,0.00010071,2]
[348599864,1736664651026,-500.0,0.00010071,2]
[348599865,1736664651038,-500.0,0.00010071,2]
[348599866,1736664651049,-907.73,0.00010071,2]
[348599867,1736664651060,-501.62766538,0.00010071,2]
[348599868,1736664651382,-500.0,0.00010071,2]
[348599869,1736664651399,-579.44,0.00010071,2]
[348599870,1736664651408,-500.0,0.00010071,2]
[348599871,1736664651417,-500.0,0.00010071,2]
[348599872,1736664651426,-500.0,0.00010071,2]
[348599873,1736664651436,-979.31,0.00010071,2]
[348599874,1736664651444,-794.38,0.00010071,2]
[348599875,1736664651453,-500.0,0.00010071,2]
[348599876,1736664651463,-500.0,0.00010071,2]
[348599877,1736664651471,-536.53,0.00010071,2]
[348599878,1736664651481,-767.51,0.00010071,2]
[348599879,1736664651490,-500.0,0.00010071,2]
[348599880,1736664651499,-941.36,0.00010071,2]
[348599881,1736664651508,-530.16,0.00010071,2]
[348599882,1736664651517,-500.0,0.00010071,2]
[348599883,1736664651527,-838.4,0.00010071,2]
[348599884,1736664651536,-500.0,0.00010071,2]
[348599885,1736664651545,-644.62,0.00010071,2]
[348599886,1736664651554,-500.0,0.00010071,2]
[348599887,1736664651564,-500.0,0.00010071,2]
[348599888,1736664651573,-787.08,0.00010071,2]